{"text_format":"3","workbook":"xlsx","n_sheets":3,"sheets":["Início","Orçamento e Controlo de Ofertas","Dados"],"not_rendered":{"charts":1,"defined_names":1},"read":"whole","date_system":"1900"}

{"sheet":"Início","index":0,"n_rows":7,"n_cols":2,"rows_kept":7}
[null,"Acerca do Modelo"]
[null,"Utilize este modelo para registar as suas compras de presentes e segui-las em relação ao orçamento."]
[null,"Introduza na tabela os nomes da família e dos amigos, os itens de oferta, os montantes orçamentados e gastos e as notas, e selecione a ocasião e o mês do evento."]
[null,"O Gráfico de Descrição Geral Mensal é atualizado automaticamente."]
[null,"Nota: "]
[null,"Foram fornecidas instruções adicionais na coluna A na folha de cálculo ORÇAMENTO E SEGUIMENTO DE OFERTAS. O texto encontra-se intencionalmente oculto. Para remover o texto, selecione a coluna A e, em seguida, selecione Eliminar. Para mostrar o texto, selecione a coluna A e, em seguida, mude a cor do tipo de letra."]
[null,"Para saber mais sobre a tabela, prima Shift+F10 numa tabela, selecione a opção TABELA e, em seguida, selecione TEXTO ALTERNATIVO."]

{"sheet":"Orçamento e Controlo de Ofertas","index":1,"n_rows":10,"n_cols":13,"rows_kept":10,"merged":[[0,1,0,4],[0,5,0,12],[1,1,1,2],[2,1,2,12],[3,1,3,3]]}
["Crie um Orçamento e Um Dispositivo de Seguimento de Ofertas pessoais nesta folha de cálculo. O título da folha de cálculo está na célula à direita e na ponta da célula F1. Existem instruções úteis sobre como utilizar esta folha de cálculo nas células desta coluna.","Orçamento e Seguimento de Ofertas",{"$nulls":3},"Preencha o máximo possível no início de cada ano novo. Insira os nomes da família e dos amigos, selecione a ocasião da oferta, selecione o mês do evento e digite quanto pretende gastar. Cada pessoa pode aparecer várias vezes na tabela para cada ocasião diferente (aniversário, feriado, festa, etc.)."]
["A etiqueta Deteção Geral Mensal está na célula à direita  e na ponta da célula D2.","Descrição Geral Mensal",null,"Utilize o gráfico para ver os próximos meses, de modo a poder fazer planos com antecedência. Registe as suas compras para as controlar em relação ao seu orçamento."]
["O gráfico de colunas para montantes orçamentados com sobreposição do gráfico de linhas para o montante gasto está na célula à direita.","O gráfico de colunas para valores orçamentados com sobreposição do gráfico de linhas para o montante gasto está nesta célula."]
["A etiqueta Orçamento de Oferta e Seguimento está na célula à direita.","Orçamento e Seguimento de Ofertas"]
["Insira os detalhes na tabela Seguimento do Orçamento a partir da célula à direita.","Quem","Ocasião","Mês","Montante\nOrçamentado","Montante\ngasto","Presente","Hiperligação para oferta","Na Loja/\nOnline","Adquirido?","Embrulhado?","Entregue?","Notas"]
[null,"Nome 1","Dias de Anos","Junho",{"v":50,"d":"50 €"},{"v":30,"d":"30 €"},"Sapatos","Vendedor","Online","Sim","Não","Não","16/06, Bilhetes para filme"]
[null,"Nome 2","Aniversários","Abril",{"v":20,"d":"20 €"},{"v":20,"d":"20 €"},"Um gato","Vendedor","Na Loja","Não","Não","Não","Mencionou que gosta de cães"]
[null,"Nome 3","Feriados","Julho",{"v":50,"d":"50 €"},{"v":70,"d":"70 €"},"Auscultadores","Vendedor","Online","Não","Não","Não","Coisas para o dormitório"]
[null,"Nome 4","Dias de Anos","Janeiro",{"v":20,"d":"20 €"},{"v":30,"d":"30 €"},"Jogo","Vendedor","Na Loja","Sim","Sim","Sim"]
[null,"Nome 5","Casamentos","Junho",{"v":100,"d":"100 €"},{"v":150,"d":"150 €"},"Jarro de cristal","Vendedor","Na Loja","Sim","Sim","Não"]

{"sheet":"Dados","index":2,"n_rows":13,"n_cols":8,"rows_kept":13,"hidden":true}
["Ocasiões",null,"Data","Data","Montante Orçamentado\nDias de Anos","Montante Orçamentado\nFeriados","Montante Orçamentado\nOutros","Montante Gasto"]
["Dias de Anos",null,"Janeiro","Jan",{"$f":"SUMIFS(BudgetTracker[Montante\nOrçamentado],BudgetTracker[Mês],\"Janeiro\",BudgetTracker[Ocasião],\"Dias de Anos\")","v":{"v":20,"d":"20 €"}},{"$f":"SUMIFS(BudgetTracker[Montante\nOrçamentado],BudgetTracker[Mês],\"Janeiro\",BudgetTracker[Ocasião],\"Feriados\")","v":{"v":0,"d":"0 €"}},{"$f":"SUMIFS(BudgetTracker[Montante\nOrçamentado],BudgetTracker[Mês],\"Janeiro\",BudgetTracker[Ocasião],\"<>Feriados\",BudgetTracker[Ocasião],\"<>Dias de Anos\")","v":{"v":0,"d":"0 €"}},{"$f":"SUMIFS(BudgetTracker[Montante\ngasto],BudgetTracker[Mês],\"Janeiro\")","v":{"v":30,"d":"30 €"}}]
["Feriados",null,"Fevereiro","Fev",{"$f":"SUMIFS(BudgetTracker[Montante\nOrçamentado],BudgetTracker[Mês],\"Fevereiro\",BudgetTracker[Ocasião],\"Dias de Anos\")","v":{"v":0,"d":"0 €"}},{"$f":"SUMIFS(BudgetTracker[Montante\nOrçamentado],BudgetTracker[Mês],\"Fevereiro\",BudgetTracker[Ocasião],\"Feriados\")","v":{"v":0,"d":"0 €"}},{"$f":"SUMIFS(BudgetTracker[Montante\nOrçamentado],BudgetTracker[Mês],\"Fevereiro\",BudgetTracker[Ocasião],\"<>Feriados\",BudgetTracker[Ocasião],\"<>Dias de Anos\")","v":{"v":0,"d":"0 €"}},{"$f":"SUMIFS(BudgetTracker[Montante\ngasto],BudgetTracker[Mês],\"Fevereiro\")","v":{"v":0,"d":"0 €"}}]
["Aniversários",null,"Março","Mar",{"$f":"SUMIFS(BudgetTracker[Montante\nOrçamentado],BudgetTracker[Mês],\"Março\",BudgetTracker[Ocasião],\"Dias de Anos\")","v":{"v":0,"d":"0 €"}},{"$f":"SUMIFS(BudgetTracker[Montante\nOrçamentado],BudgetTracker[Mês],\"Março\",BudgetTracker[Ocasião],\"Feriados\")","v":{"v":0,"d":"0 €"}},{"$f":"SUMIFS(BudgetTracker[Montante\nOrçamentado],BudgetTracker[Mês],\"Março\",BudgetTracker[Ocasião],\"<>Feriados\",BudgetTracker[Ocasião],\"<>Dias de Anos\")","v":{"v":0,"d":"0 €"}},{"$f":"SUMIFS(BudgetTracker[Montante\ngasto],BudgetTracker[Mês],\"Março\")","v":{"v":0,"d":"0 €"}}]
["Casamentos",null,"Abril","Abr",{"$f":"SUMIFS(BudgetTracker[Montante\nOrçamentado],BudgetTracker[Mês],\"Abril\",BudgetTracker[Ocasião],\"Dias de Anos\")","v":{"v":0,"d":"0 €"}},{"$f":"SUMIFS(BudgetTracker[Montante\nOrçamentado],BudgetTracker[Mês],\"Abril\",BudgetTracker[Ocasião],\"Feriados\")","v":{"v":0,"d":"0 €"}},{"$f":"SUMIFS(BudgetTracker[Montante\nOrçamentado],BudgetTracker[Mês],\"Abril\",BudgetTracker[Ocasião],\"<>Feriados\",BudgetTracker[Ocasião],\"<>Dias de Anos\")","v":{"v":20,"d":"20 €"}},{"$f":"SUMIFS(BudgetTracker[Montante\ngasto],BudgetTracker[Mês],\"Abril\")","v":{"v":20,"d":"20 €"}}]
["Festas da noiva",null,"Maio","Mai",{"$f":"SUMIFS(BudgetTracker[Montante\nOrçamentado],BudgetTracker[Mês],\"Maio\",BudgetTracker[Ocasião],\"Dias de Anos\")","v":{"v":0,"d":"0 €"}},{"$f":"SUMIFS(BudgetTracker[Montante\nOrçamentado],BudgetTracker[Mês],\"Maio\",BudgetTracker[Ocasião],\"Feriados\")","v":{"v":0,"d":"0 €"}},{"$f":"SUMIFS(BudgetTracker[Montante\nOrçamentado],BudgetTracker[Mês],\"Maio\",BudgetTracker[Ocasião],\"<>Feriados\",BudgetTracker[Ocasião],\"<>Dias de Anos\")","v":{"v":0,"d":"0 €"}},{"$f":"SUMIFS(BudgetTracker[Montante\ngasto],BudgetTracker[Mês],\"Maio\")","v":{"v":0,"d":"0 €"}}]
["Festas do bebé",null,"Junho","Jun",{"$f":"SUMIFS(BudgetTracker[Montante\nOrçamentado],BudgetTracker[Mês],\"Junho\",BudgetTracker[Ocasião],\"Dias de Anos\")","v":{"v":50,"d":"50 €"}},{"$f":"SUMIFS(BudgetTracker[Montante\nOrçamentado],BudgetTracker[Mês],\"Junho\",BudgetTracker[Ocasião],\"Feriados\")","v":{"v":0,"d":"0 €"}},{"$f":"SUMIFS(BudgetTracker[Montante\nOrçamentado],BudgetTracker[Mês],\"Junho\",BudgetTracker[Ocasião],\"<>Feriados\",BudgetTracker[Ocasião],\"<>Dias de Anos\")","v":{"v":100,"d":"100 €"}},{"$f":"SUMIFS(BudgetTracker[Montante\ngasto],BudgetTracker[Mês],\"Junho\")","v":{"v":180,"d":"180 €"}}]
["Fim da licenciatura",null,"Julho","Jul",{"$f":"SUMIFS(BudgetTracker[Montante\nOrçamentado],BudgetTracker[Mês],\"Julho\",BudgetTracker[Ocasião],\"Dias de Anos\")","v":{"v":0,"d":"0 €"}},{"$f":"SUMIFS(BudgetTracker[Montante\nOrçamentado],BudgetTracker[Mês],\"Julho\",BudgetTracker[Ocasião],\"Feriados\")","v":{"v":50,"d":"50 €"}},{"$f":"SUMIFS(BudgetTracker[Montante\nOrçamentado],BudgetTracker[Mês],\"Julho\",BudgetTracker[Ocasião],\"<>Feriados\",BudgetTracker[Ocasião],\"<>Dias de Anos\")","v":{"v":0,"d":"0 €"}},{"$f":"SUMIFS(BudgetTracker[Montante\ngasto],BudgetTracker[Mês],\"Julho\")","v":{"v":70,"d":"70 €"}}]
["Outros",null,"Agosto","Ago",{"$f":"SUMIFS(BudgetTracker[Montante\nOrçamentado],BudgetTracker[Mês],\"Agosto\",BudgetTracker[Ocasião],\"Dias de Anos\")","v":{"v":0,"d":"0 €"}},{"$f":"SUMIFS(BudgetTracker[Montante\nOrçamentado],BudgetTracker[Mês],\"Agosto\",BudgetTracker[Ocasião],\"Feriados\")","v":{"v":0,"d":"0 €"}},{"$f":"SUMIFS(BudgetTracker[Montante\nOrçamentado],BudgetTracker[Mês],\"Agosto\",BudgetTracker[Ocasião],\"<>Feriados\",BudgetTracker[Ocasião],\"<>Dias de Anos\")","v":{"v":0,"d":"0 €"}},{"$f":"SUMIFS(BudgetTracker[Montante\ngasto],BudgetTracker[Mês],\"Agosto\")","v":{"v":0,"d":"0 €"}}]
[null,null,"Setembro","Set",{"$f":"SUMIFS(BudgetTracker[Montante\nOrçamentado],BudgetTracker[Mês],\"Setembro\",BudgetTracker[Ocasião],\"Dias de Anos\")","v":{"v":0,"d":"0 €"}},{"$f":"SUMIFS(BudgetTracker[Montante\nOrçamentado],BudgetTracker[Mês],\"Setembro\",BudgetTracker[Ocasião],\"Feriados\")","v":{"v":0,"d":"0 €"}},{"$f":"SUMIFS(BudgetTracker[Montante\nOrçamentado],BudgetTracker[Mês],\"Setembro\",BudgetTracker[Ocasião],\"<>Feriados\",BudgetTracker[Ocasião],\"<>Dias de Anos\")","v":{"v":0,"d":"0 €"}},{"$f":"SUMIFS(BudgetTracker[Montante\ngasto],BudgetTracker[Mês],\"Setembro\")","v":{"v":0,"d":"0 €"}}]
[null,null,"Outubro","Out",{"$f":"SUMIFS(BudgetTracker[Montante\nOrçamentado],BudgetTracker[Mês],\"Outubro\",BudgetTracker[Ocasião],\"Dias de Anos\")","v":{"v":0,"d":"0 €"}},{"$f":"SUMIFS(BudgetTracker[Montante\nOrçamentado],BudgetTracker[Mês],\"Outubro\",BudgetTracker[Ocasião],\"Feriados\")","v":{"v":0,"d":"0 €"}},{"$f":"SUMIFS(BudgetTracker[Montante\nOrçamentado],BudgetTracker[Mês],\"Outubro\",BudgetTracker[Ocasião],\"<>Feriados\",BudgetTracker[Ocasião],\"<>Dias de Anos\")","v":{"v":0,"d":"0 €"}},{"$f":"SUMIFS(BudgetTracker[Montante\ngasto],BudgetTracker[Mês],\"Outubro\")","v":{"v":0,"d":"0 €"}}]
[null,null,"Novembro","Nov",{"$f":"SUMIFS(BudgetTracker[Montante\nOrçamentado],BudgetTracker[Mês],\"Novembro\",BudgetTracker[Ocasião],\"Dias de Anos\")","v":{"v":0,"d":"0 €"}},{"$f":"SUMIFS(BudgetTracker[Montante\nOrçamentado],BudgetTracker[Mês],\"Novembro\",BudgetTracker[Ocasião],\"Feriados\")","v":{"v":0,"d":"0 €"}},{"$f":"SUMIFS(BudgetTracker[Montante\nOrçamentado],BudgetTracker[Mês],\"Novembro\",BudgetTracker[Ocasião],\"<>Feriados\",BudgetTracker[Ocasião],\"<>Dias de Anos\")","v":{"v":0,"d":"0 €"}},{"$f":"SUMIFS(BudgetTracker[Montante\ngasto],BudgetTracker[Mês],\"Novembro\")","v":{"v":0,"d":"0 €"}}]
[null,null,"Dezembro","Dez",{"$f":"SUMIFS(BudgetTracker[Montante\nOrçamentado],BudgetTracker[Mês],\"Dezembro\",BudgetTracker[Ocasião],\"Dias de Anos\")","v":{"v":0,"d":"0 €"}},{"$f":"SUMIFS(BudgetTracker[Montante\nOrçamentado],BudgetTracker[Mês],\"Dezembro\",BudgetTracker[Ocasião],\"Feriados\")","v":{"v":0,"d":"0 €"}},{"$f":"SUMIFS(BudgetTracker[Montante\nOrçamentado],BudgetTracker[Mês],\"Dezembro\",BudgetTracker[Ocasião],\"<>Feriados\",BudgetTracker[Ocasião],\"<>Dias de Anos\")","v":{"v":0,"d":"0 €"}},{"$f":"SUMIFS(BudgetTracker[Montante\ngasto],BudgetTracker[Mês],\"Dezembro\")","v":{"v":0,"d":"0 €"}}]